fUST/lending_fUST_20250216
["ID","MTS","AMOUNT","RATE_DAILY","PERIOD"]
[353234610,1739694641353,-500.0,8.785e-05,2]
[353234611,1739694641363,-1066.95,8.785e-05,2]
[353234612,1739694641373,-500.0,8.785e-05,2]
[353234613,1739694641383,-500.0,8.785e-05,2]
[353234614,1739694641392,-503.40313587,8.785e-05,2]
[353234615,1739694641402,-500.0,8.785e-05,2]
[353234616,1739694641412,-500.0,8.785e-05,2]
[353234617,1739694641421,-500.0,8.785e-05,2]
[353234618,1739694641431,-500.0,8.785e-05,2]
[353234619,1739694641441,-500.0,8.785e-05,2]
[353234620,1739694641450,-457.49306499,8.785e-05,2]
[353234621,1739694641460,-514.83549926,8.785e-05,2]
[353234622,1739694641469,-908.42,8.785e-05,2]
[353234623,1739694641479,-500.0,8.786e-05,2]
[353234624,1739694641489,-500.0,8.786e-05,2]
[353234625,1739694641499,-500.0,8.786e-05,2]
[353234626,1739694641508,-500.0,8.786e-05,2]
[353234627,1739694641517,-2158.21,8.786e-05,2]
[353234628,1739694641527,-507.22658162,8.786e-05,2]
[353234629,1739694641537,-2287.86,8.786e-05,2]
[353234630,1739694641546,-557.11,8.786e-05,2]
[353234631,1739694641557,-500.0,8.786e-05,2]
[353234632,1739694641566,-500.0,8.786e-05,2]
[353234633,1739694641576,-500.0,8.786e-05,2]
[353234634,1739694641586,-500.83437261,8.786e-05,2]
[353234635,1739694641595,-501.47443994,8.786e-05,2]
[353234636,1739694641608,-500.0,8.786e-05,2]
[353234637,1739694641627,-500.0,8.786e-05,2]
[353234638,1739694641637,-2254.61,8.786e-05,2]
[353234639,1739694641647,-500.0,8.786e-05,2]
[353234640,1739694641657,-610.43,8.786e-05,2]
[353234641,1739694641667,-500.0,8.786e-05,2]
[353234642,1739694641679,-500.0,8.786e-05,2]
[353234643,1739694641697,-642.99,8.786e-05,2]
[353234644,1739694641713,-151.492578,8.786e-05,2]
[353234645,1739694641722,-500.0,8.786e-05,2]
[353234646,1739694641732,-500.0,8.786e-05,2]
[353234647,1739694641741,-705.58,8.786e-05,2]
[353234648,1739694641750,-8286.85,8.786e-05,2]
[353234649,1739694641759,-8286.85,8.786e-05,2]
[353234650,1739694641769,-8286.85,8.786e-05,2]
[353234651,1739694641777,-8286.85,8.786e-05,2]
[353234652,1739694641786,-8286.85,8.786e-05,2]
[353234653,1739694641796,-500.0,8.786e-05,2]
[353234654,1739694641805,-513.08,8.786e-05,2]
[353234655,1739694641815,-500.0,8.786e-05,2]
[353234656,1739694641825,-500.0,8.786e-05,2]
[353234657,1739694641838,-500.0,8.786e-05,2]
[353234658,1739694641847,-500.0,8.786e-05,2]
[353234659,1739694641857,-500.0,8.786e-05,2]
[353234660,1739694641867,-629.92,8.786e-05,2]
[353234661,1739694641876,-500.0,8.786e-05,2]
[353234662,1739694641886,-500.0,8.787e-05,2]
[353234663,1739694641896,-500.0,8.787e-05,2]
[353234664,1739694641906,-500.0,8.787e-05,2]
[353234665,1739694641916,-500.0,8.787e-05,2]
[353234666,1739694641925,-500.0,8.787e-05,2]
[353234667,1739694641935,-500.0,8.787e-05,2]
[353234668,1739694641943,-1154.65,8.787e-05,2]
[353234669,1739694641952,-500.0,8.787e-05,2]
[353234670,1739694641961,-500.0,8.787e-05,2]
[353234671,1739694641970,-2160.43,8.787e-05,2]
[353234672,1739694641979,-773.24,8.787e-05,2]
[353234673,1739694641989,-8286.85,8.787e-05,2]
[353234674,1739694641998,-165.09926941,8.788e-05,2]
[353234675,1739694642008,-8286.85,8.788e-05,2]
[353234676,1739694642018,-8286.85,8.788e-05,2]
[353234677,1739694642027,-300.0,8.79e-05,2]
[353234678,1739694642038,-165.09926941,8.79e-05,2]
[353234679,1739694642047,-8286.85,8.794e-05,2]
[353234680,1739694642057,-8286.85,8.795e-05,2]
[353234681,1739694642067,-8286.85,8.795e-05,2]
[353234682,1739694642076,-8286.85,8.795e-05,2]
[353234683,1739694642086,-8286.85,8.795e-05,2]
[353234684,1739694642096,-8286.85,8.795e-05,2]
[353234685,1739694642105,-8286.89850851,8.795e-05,2]
[353234686,1739694642115,-40919.0703288,8.796e-05,3]
[353234687,1739694642125,-1103693.97061467,8.797e-05,2]
[353234710,1739695175157,590.98,0.00019,120]
[353234712,1739695600143,-423.85263463,8.22e-05,2]
[353234715,1739695772080,-158.033958,7.782e-05,2]
[353234716,1739695772101,-158.033958,7.788e-05,2]
[353234717,1739695772126,-158.033958,7.794e-05,2]
[353234718,1739695772147,-158.033958,7.801e-05,2]
[353234719,1739695772171,-158.033958,7.807e-05,2]
[353234720,1739695772192,-157.46081,7.814e-05,2]
[353234764,1739695831880,-0.573148,7.814e-05,2]
[353234765,1739695831890,-158.033958,7.82e-05,2]
[353234766,1739695831899,-1176.14736537,8.22e-05,2]
[353234767,1739695831908,-153.88742,8.709e-05,2]
[353234768,1739695831917,-300.0,8.772e-05,2]
[353234769,1739695831926,-296.73408149,8.773e-05,2]
[353234770,1739695831935,-204.86372371,8.773e-05,2]
[353234771,1739695831944,-500.0,8.773e-05,2]
[353234772,1739695831954,-500.0,8.773e-05,2]
[353234773,1739695831964,-500.0,8.773e-05,2]
[353234774,1739695831974,-500.0,8.773e-05,2]
[353234775,1739695831983,-500.0,8.773e-05,2]
[353234776,1739695831992,-500.0,8.773e-05,2]
[353234777,1739695832001,-160.61699898,8.773e-05,2]
[353234778,1739695832011,-500.0,8.773e-05,2]
[353234779,1739695832020,-500.0,8.773e-05,2]
[353234780,1739695832029,-500.0,8.773e-05,2]
[353234781,1739695832038,-500.0,8.773e-05,2]
[353234783,1739695832047,-2371.85,8.779e-05,2]
[353234785,1739695832057,-500.0,8.779e-05,2]
[353234787,1739695832066,-500.0,8.779e-05,2]
[353234789,1739695832075,-500.0,8.779e-05,2]
[353234791,1739695832085,-500.0,8.78e-05,2]
[353234793,1739695832095,-420.02369397,8.78e-05,2]
[353234795,1739695832104,-500.0,8.78e-05,2]
[353234797,1739695832114,-500.0,8.78e-05,2]
[353234799,1739695832124,-500.0,8.78e-05,2]
[353234801,1739695832133,-500.0,8.78e-05,2]
[353234804,1739695832146,-500.0,8.78e-05,2]
[353234805,1739695832155,-500.0,8.78e-05,2]
[353234807,1739695832165,-536.38930715,8.78e-05,2]
[353234809,1739695832174,-500.0,8.78e-05,2]
[353234811,1739695832185,-500.0,8.78e-05,2]
[353234813,1739695832195,-500.0,8.78e-05,2]
[353234814,1739695832204,-500.0,8.78e-05,2]
[353234815,1739695832216,-500.0,8.78e-05,2]
[353234816,1739695832226,-500.0,8.78e-05,2]
[353234817,1739695832236,-500.0,8.78e-05,2]
[353234818,1739695832245,-500.0,8.78e-05,2]
[353234819,1739695832254,-500.0,8.78e-05,2]
[353234820,1739695832263,-505.49781623,8.78e-05,2]
[353234821,1739695832274,-500.0,8.78e-05,2]
[353234822,1739695832294,-500.0,8.78e-05,2]
[353234823,1739695832304,-1035.72,8.78e-05,2]
[353234824,1739695832314,-500.0,8.78e-05,2]
[353234825,1739695832324,-500.0,8.78e-05,2]
[353234826,1739695832334,-500.0,8.78e-05,2]
[353234827,1739695832344,-500.0,8.78e-05,2]
[353234828,1739695832354,-500.0,8.78e-05,2]
[353234829,1739695832363,-500.0,8.78e-05,2]
[353234831,1739695832373,-500.0,8.78e-05,2]
[353234832,1739695832383,-500.0,8.78e-05,2]
[353234834,1739695832392,-500.0,8.78e-05,2]
[353234836,1739695832402,-500.0,8.78e-05,2]
[353234838,1739695832412,-500.0,8.78e-05,2]
[353234840,1739695832421,-196.4427872,8.78e-05,2]
[353234842,1739695832432,-500.0,8.78e-05,2]
[353234843,1739695832441,-3147.38,8.78e-05,2]
[353234844,1739695832451,-500.0,8.78e-05,2]
[353234845,1739695832461,-500.0,8.78e-05,2]
[353234846,1739695832471,-500.0,8.78e-05,2]
[353234847,1739695832481,-500.0,8.78e-05,2]
[353234848,1739695832491,-500.0,8.78e-05,2]
[353234849,1739695832500,-496.97806786,8.78e-05,2]
[353234850,1739695832509,-500.0,8.78e-05,2]
[353234851,1739695832519,-500.0,8.78e-05,2]
[353234853,1739695832528,-500.0,8.78e-05,2]
[353234854,1739695832537,-500.0,8.78e-05,2]
[353234855,1739695832546,-500.0,8.78e-05,2]
[353234856,1739695832556,-500.0,8.78e-05,2]
[353234857,1739695832565,-500.0,8.78e-05,2]
[353234858,1739695832575,-500.0,8.78e-05,2]
[353234859,1739695832584,-500.0,8.78e-05,2]
[353234860,1739695832593,-511.19324518,8.78e-05,2]
[353234861,1739695832603,-500.0,8.78e-05,2]
[353234862,1739695832612,-500.0,8.78e-05,2]
[353234863,1739695832622,-500.0,8.78e-05,2]
[353234864,1739695832632,-500.0,8.78e-05,2]
[353234865,1739695832641,-500.0,8.78e-05,2]
[353234866,1739695832650,-500.0,8.78e-05,2]
[353234867,1739695832660,-500.0,8.78e-05,2]
[353234868,1739695832669,-500.0,8.78e-05,2]
[353234869,1739695832678,-500.0,8.78e-05,2]
[353234870,1739695832688,-500.0,8.78e-05,2]
[353234871,1739695832697,-500.0,8.78e-05,2]
[353234872,1739695832707,-389.21503979,8.78e-05,2]
[353234873,1739695832717,-500.0,8.78e-05,2]
[353234874,1739695832727,-500.0,8.78e-05,2]
[353234875,1739695832736,-500.0,8.78e-05,2]
[353234876,1739695832745,-507.41667152,8.78e-05,2]
[353234877,1739695832754,-500.0,8.78e-05,2]
[353234878,1739695832764,-500.0,8.78e-05,2]
[353234879,1739695832774,-500.0,8.78e-05,2]
[353234880,1739695832784,-500.0,8.78e-05,2]
[353234881,1739695832793,-500.0,8.78e-05,2]
[353234882,1739695832803,-500.0,8.78e-05,2]
[353234883,1739695832812,-500.0,8.78e-05,2]
[353234884,1739695832821,-500.0,8.78e-05,2]
[353234885,1739695832830,-424.27050287,8.78e-05,2]
[353234886,1739695832840,-500.0,8.78e-05,2]
[353234887,1739695832849,-591.45494329,8.78e-05,2]
[353234888,1739695832859,-500.0,8.78e-05,2]
[353234889,1739695832869,-500.0,8.78e-05,2]
[353234890,1739695832878,-500.0,8.78e-05,2]
[353234891,1739695832887,-500.0,8.78e-05,2]
[353234892,1739695832897,-500.0,8.78e-05,2]
[353234893,1739695832907,-500.0,8.78e-05,2]
[353234894,1739695832916,-500.0,8.78e-05,2]
[353234895,1739695832926,-500.0,8.78e-05,2]
[353234896,1739695832936,-500.0,8.78e-05,2]
[353234897,1739695832945,-500.0,8.78e-05,2]
[353234898,1739695832956,-500.0,8.78e-05,2]
[353234899,1739695832967,-500.0,8.78e-05,2]
[353234900,1739695832977,-500.0,8.78e-05,2]
[353234901,1739695832987,-500.0,8.78e-05,2]
[353234902,1739695832996,-500.0,8.78e-05,2]
[353234903,1739695833005,-500.0,8.78e-05,2]
[353234904,1739695833015,-500.0,8.78e-05,2]
[353234905,1739695833024,-500.0,8.78e-05,2]
[353234906,1739695833035,-500.0,8.78e-05,2]
[353234907,1739695833045,-2398.72,8.78e-05,2]
[353234908,1739695833055,-500.0,8.78e-05,2]
[353234909,1739695833065,-500.0,8.78e-05,2]
[353234910,1739695833202,-500.0,8.78e-05,2]
[353234911,1739695833213,-6729.99,8.78e-05,2]
[353234912,1739695833225,-500.0,8.78e-05,2]
[353234913,1739695833234,-500.0,8.78e-05,2]
[353234914,1739695833244,-500.0,8.78e-05,2]
[353234915,1739695833256,-500.0,8.78e-05,2]
[353234916,1739695833265,-549.06939993,8.78e-05,2]
[353234917,1739695833275,-529.9006662,8.78e-05,2]
[353234918,1739695833284,-1209.15,8.78e-05,2]
[353234919,1739695833294,-502.25073559,8.78e-05,2]
[353234920,1739695833303,-500.0,8.78e-05,2]
[353234921,1739695833313,-2532.39,8.78e-05,2]
[353234922,1739695833323,-500.0,8.78e-05,2]
[353234923,1739695833333,-212.24637764,8.78e-05,2]
[353234924,1739695833348,-287.75362236,8.78e-05,2]
[353234925,1739695833358,-294.46922317,8.78e-05,2]
[353234926,1739695833367,-509.5254402,8.78e-05,2]
[353234927,1739695833377,-500.0,8.78e-05,2]
[353234928,1739695833387,-1037.63,8.78e-05,2]
[353234929,1739695833396,-500.0,8.78e-05,2]
[353234930,1739695833406,-500.0,8.78e-05,2]
[353234931,1739695833416,-500.0,8.78e-05,2]
[353234932,1739695833425,-500.0,8.78e-05,2]
[353234933,1739695833435,-500.0,8.78e-05,2]
[353234934,1739695833444,-500.0,8.78e-05,2]
[353234935,1739695833454,-500.0,8.78e-05,2]
[353234936,1739695833463,-500.0,8.78e-05,2]
[353234937,1739695833472,-701.75,8.78e-05,2]
[353234938,1739695833482,-500.0,8.78e-05,2]
[353234939,1739695833491,-500.0,8.78e-05,2]
[353234940,1739695833501,-500.0,8.78e-05,2]
[353234941,1739695833510,-502.38815617,8.78e-05,2]
[353234942,1739695833520,-500.0,8.78e-05,2]
[353234943,1739695833530,-500.0,8.78e-05,2]
[353234944,1739695833539,-500.0,8.78e-05,2]
[353234945,1739695833548,-500.0,8.78e-05,2]
[353234946,1739695833558,-496.49889218,8.78e-05,2]
[353234947,1739695833567,-500.0,8.78e-05,2]
[353234948,1739695833577,-500.0,8.78e-05,2]
[353234949,1739695833586,-500.0,8.78e-05,2]
[353234950,1739695833595,-1424.3,8.78e-05,2]
[353234951,1739695833605,-500.0,8.78e-05,2]
[353234952,1739695833614,-500.0,8.78e-05,2]
[353234953,1739695833624,-500.0,8.78e-05,2]
[353234954,1739695833633,-500.0,8.78e-05,2]
[353234955,1739695833643,-260.65027256,8.78e-05,2]
[353234956,1739695833653,-500.0,8.78e-05,2]
[353234957,1739695833663,-758.37,8.78e-05,2]
[353234958,1739695833673,-500.0,8.78e-05,2]
[353234959,1739695833683,-501.28894036,8.78e-05,2]
[353234960,1739695833695,-500.0,8.78e-05,2]
[353234961,1739695833704,-2188.11,8.78e-05,2]
[353234962,1739695833714,-861.58,8.78e-05,2]
[353234963,1739695833723,-500.0,8.78e-05,2]
[353234964,1739695833733,-500.0,8.78e-05,2]
[353234965,1739695833743,-500.0,8.78e-05,2]
[353234966,1739695833753,-500.0,8.78e-05,2]
[353234967,1739695833762,-500.0,8.78e-05,2]
[353234968,1739695833771,-4440.03,8.78e-05,2]
[353234969,1739695833780,-435.84550457,8.78e-05,2]
[353234970,1739695833789,-500.0,8.78e-05,2]
[353234971,1739695833799,-500.0,8.78e-05,2]
[353234972,1739695833808,-500.0,8.78e-05,2]
[353234973,1739695833817,-500.0,8.78e-05,2]
[353234974,1739695833828,-500.0,8.78e-05,2]
[353234975,1739695833837,-500.0,8.78e-05,2]
[353234976,1739695833846,-500.0,8.78e-05,2]
[353234977,1739695833855,-154.873,8.781e-05,2]
[353234978,1739695833865,-171.39127815,8.781e-05,2]
[353234979,1739695833874,-500.0,8.781e-05,2]
[353234980,1739695833884,-500.0,8.781e-05,2]
[353234981,1739695833893,-789.97,8.781e-05,2]
[353234982,1739695833903,-500.0,8.781e-05,2]
[353234983,1739695833914,-500.0,8.781e-05,2]
[353234984,1739695833923,-598.48,8.781e-05,2]
[353234985,1739695833933,-500.0,8.781e-05,2]
[353234986,1739695833942,-645.03,8.781e-05,2]
[353234987,1739695833952,-500.0,8.781e-05,2]
[353234988,1739695833962,-500.0,8.781e-05,2]
[353234989,1739695833973,-500.0,8.781e-05,2]
[353234990,1739695833983,-500.0,8.781e-05,2]
[353234991,1739695833993,-500.0,8.781e-05,2]
[353234992,1739695834003,-500.0,8.781e-05,2]
[353234993,1739695834012,-500.0,8.781e-05,2]
[353234994,1739695834022,-944.8,8.781e-05,2]
[353234995,1739695834032,-646.54,8.781e-05,2]
[353234996,1739695834041,-500.0,8.781e-05,2]
[353234997,1739695834051,-500.0,8.781e-05,2]
[353234998,1739695834060,-500.0,8.781e-05,2]
[353234999,1739695834070,-500.0,8.781e-05,2]
[353235000,1739695834079,-670.84,8.781e-05,2]
[353235001,1739695834088,-500.0,8.781e-05,2]
[353235002,1739695834098,-500.0,8.781e-05,2]
[353235003,1739695834107,-500.0,8.781e-05,2]
[353235004,1739695834116,-500.0,8.781e-05,2]
[353235005,1739695834125,-500.0,8.781e-05,2]
[353235006,1739695834135,-500.0,8.781e-05,2]
[353235007,1739695834148,-500.0,8.781e-05,2]
[353235008,1739695834157,-500.0,8.781e-05,2]
[353235009,1739695834166,-931.73,8.781e-05,2]
[353235010,1739695834175,-500.0,8.781e-05,2]
[353235011,1739695834185,-500.0,8.781e-05,2]
[353235012,1739695834195,-500.0,8.781e-05,2]
[353235013,1739695834205,-737.91,8.781e-05,2]
[353235014,1739695834214,-500.0,8.781e-05,2]
[353235015,1739695834224,-680.63,8.781e-05,2]
[353235016,1739695834234,-500.0,8.781e-05,2]
[353235017,1739695834243,-506.43659212,8.781e-05,2]
[353235018,1739695834252,-500.0,8.781e-05,2]
[353235019,1739695834262,-500.0,8.781e-05,2]
[353235020,1739695834272,-500.0,8.781e-05,2]
[353235021,1739695834281,-500.0,8.781e-05,2]
[353235022,1739695834291,-500.0,8.781e-05,2]
[353235023,1739695834300,-628.52,8.781e-05,2]
[353235024,1739695834310,-500.0,8.781e-05,2]
[353235025,1739695834320,-500.0,8.781e-05,2]
[353235026,1739695834329,-843.76,8.781e-05,2]
[353235027,1739695834338,-500.0,8.781e-05,2]
[353235028,1739695834347,-500.0,8.781e-05,2]
[353235029,1739695834357,-34665.09,8.781e-05,2]
[353235030,1739695834366,-500.0,8.781e-05,2]
[353235031,1739695834375,-500.0,8.781e-05,2]
[353235032,1739695834384,-500.0,8.781e-05,2]
[353235033,1739695834394,-1908.99,8.781e-05,2]
[353235034,1739695834403,-500.0,8.781e-05,2]
[353235035,1739695834411,-500.0,8.781e-05,2]
[353235036,1739695834420,-500.0,8.781e-05,2]
[353235037,1739695834429,-921.87,8.781e-05,2]
[353235038,1739695834439,-500.0,8.781e-05,2]
[353235039,1739695834448,-500.0,8.781e-05,2]
[353235040,1739695834458,-500.0,8.781e-05,2]
[353235041,1739695834468,-834.59,8.781e-05,2]
[353235042,1739695834477,-1109.01,8.781e-05,2]
[353235043,1739695834486,-16031.52,8.781e-05,2]
[353235044,1739695834495,-500.0,8.781e-05,2]
[353235045,1739695834504,-503.20713386,8.781e-05,2]
[353235046,1739695834513,-2581.21,8.781e-05,2]
[353235047,1739695834522,-695.73,8.781e-05,2]
[353235048,1739695834531,-625.1,8.781e-05,2]
[353235049,1739695834542,-500.0,8.781e-05,2]
[353235050,1739695834551,-500.0,8.781e-05,2]
[353235051,1739695834560,-1458.76,8.781e-05,2]
[353235052,1739695834569,-2021.09,8.781e-05,2]
[353235053,1739695834578,-500.0,8.781e-05,2]
[353235054,1739695834587,-500.0,8.781e-05,2]
[353235055,1739695834596,-500.0,8.781e-05,2]
[353235056,1739695834605,-500.0,8.781e-05,2]
[353235057,1739695834615,-500.0,8.781e-05,2]
[353235058,1739695834624,-500.0,8.781e-05,2]
[353235059,1739695834633,-500.0,8.781e-05,2]
[353235060,1739695834642,-500.0,8.781e-05,2]
[353235061,1739695834651,-500.0,8.781e-05,2]
[353235062,1739695834660,-501.81907582,8.781e-05,2]
[353235063,1739695834669,-500.0,8.781e-05,2]
[353235064,1739695834754,-507.17438468,8.781e-05,2]
[353235065,1739695834763,-500.0,8.781e-05,2]
[353235066,1739695834773,-591.95,8.781e-05,2]
[353235067,1739695834782,-500.0,8.781e-05,2]
[353235068,1739695834791,-500.0,8.781e-05,2]
[353235069,1739695834800,-679.88,8.781e-05,2]
[353235070,1739695834809,-1017.12,8.781e-05,2]
[353235071,1739695834818,-500.0,8.781e-05,2]
[353235072,1739695834827,-1285.87,8.781e-05,2]
[353235073,1739695834836,-500.0,8.781e-05,2]
[353235074,1739695834845,-500.0,8.781e-05,2]
[353235075,1739695834855,-500.0,8.781e-05,2]
[353235076,1739695834864,-500.0,8.781e-05,2]
[353235077,1739695834874,-773.91,8.781e-05,2]
[353235078,1739695834883,-500.0,8.781e-05,2]
[353235079,1739695834893,-500.0,8.781e-05,2]
[353235080,1739695834902,-500.0,8.781e-05,2]
[353235081,1739695834913,-500.0,8.781e-05,2]
[353235082,1739695834923,-500.0,8.781e-05,2]
[353235083,1739695834932,-506.38679745,8.781e-05,2]
[353235084,1739695834942,-173.02973872,8.781e-05,2]
[353235085,1739695834951,-500.0,8.781e-05,2]
[353235086,1739695834960,-301.28559592,8.781e-05,2]
[353235087,1739695834970,-500.0,8.781e-05,2]
[353235088,1739695834979,-500.0,8.781e-05,2]
[353235089,1739695834988,-500.0,8.781e-05,2]
[353235090,1739695834997,-500.0,8.781e-05,2]
[353235091,1739695835007,-500.0,8.781e-05,2]
[353235092,1739695835017,-1073.36,8.781e-05,2]
[353235093,1739695835026,-777.1,8.781e-05,2]
[353235094,1739695835036,-644.22,8.781e-05,2]
[353235095,1739695835045,-500.0,8.781e-05,2]
[353235096,1739695835055,-500.0,8.781e-05,2]
[353235097,1739695835065,-1250.37,8.781e-05,2]
[353235098,1739695835075,-500.0,8.781e-05,2]
[353235099,1739695835084,-511.68145535,8.781e-05,2]
[353235100,1739695835094,-721.33,8.781e-05,2]
[353235101,1739695835103,-500.0,8.781e-05,2]
[353235102,1739695835112,-500.0,8.781e-05,2]
[353235103,1739695835123,-500.0,8.781e-05,2]
[353235104,1739695835133,-500.0,8.781e-05,2]
[353235105,1739695835147,-500.0,8.781e-05,2]
[353235106,1739695835156,-500.0,8.781e-05,2]
[353235107,1739695835166,-14902.8,8.781e-05,2]
[353235108,1739695835176,-500.0,8.781e-05,2]
[353235109,1739695835195,-500.0,8.781e-05,2]
[353235110,1739695835205,-3134.38,8.781e-05,2]
[353235111,1739695835215,-1126.66,8.781e-05,2]
[353235112,1739695835225,-500.0,8.781e-05,2]
[353235113,1739695835234,-500.0,8.781e-05,2]
[353235114,1739695835245,-709.63,8.781e-05,2]
[353235115,1739695835254,-500.0,8.781e-05,2]
[353235116,1739695835263,-500.0,8.781e-05,2]
[353235117,1739695835273,-500.0,8.781e-05,2]
[353235118,1739695835283,-500.0,8.782e-05,2]
[353235119,1739695835292,-500.0,8.782e-05,2]
[353235120,1739695835301,-500.0,8.782e-05,2]
[353235121,1739695835311,-500.0,8.782e-05,2]
[353235122,1739695835320,-500.0,8.782e-05,2]
[353235123,1739695835330,-500.0,8.782e-05,2]
[353235124,1739695835340,-500.0,8.782e-05,2]
[353235125,1739695835350,-500.0,8.782e-05,2]
[353235126,1739695835358,-299.81601612,8.782e-05,2]
[353235127,1739695835368,-500.0,8.782e-05,2]
[353235128,1739695835378,-500.0,8.782e-05,2]
[353235129,1739695835387,-500.0,8.782e-05,2]
[353235130,1739695835396,-500.0,8.782e-05,2]
[353235131,1739695835406,-500.0,8.782e-05,2]
[353235132,1739695835415,-562.14646434,8.782e-05,2]
[353235133,1739695835426,-500.0,8.782e-05,2]
[353235134,1739695835435,-493.89617248,8.782e-05,2]
[353235135,1739695835445,-500.0,8.782e-05,2]
[353235136,1739695835455,-500.0,8.782e-05,2]
[353235137,1739695835465,-500.0,8.782e-05,2]
[353235138,1739695835475,-500.0,8.782e-05,2]
[353235139,1739695835484,-500.0,8.782e-05,2]
[353235140,1739695835494,-500.0,8.782e-05,2]
[353235141,1739695835504,-500.0,8.782e-05,2]
[353235142,1739695835513,-500.0,8.782e-05,2]
[353235143,1739695835523,-500.0,8.782e-05,2]
[353235144,1739695835533,-500.0,8.782e-05,2]
[353235145,1739695835542,-500.0,8.782e-05,2]
[353235146,1739695835552,-500.0,8.782e-05,2]
[353235147,1739695835561,-500.0,8.782e-05,2]
[353235148,1739695835571,-500.0,8.782e-05,2]
[353235149,1739695835580,-506.44225592,8.782e-05,2]
[353235150,1739695835590,-510.91120809,8.782e-05,2]
[353235151,1739695835599,-500.0,8.782e-05,2]
[353235152,1739695835609,-500.0,8.782e-05,2]
[353235153,1739695835618,-500.0,8.782e-05,2]
[353235154,1739695835628,-501.08932549,8.782e-05,2]
[353235155,1739695835637,-500.79676142,8.782e-05,2]
[353235156,1739695835647,-512.22625912,8.782e-05,2]
[353235157,1739695835657,-500.0,8.782e-05,2]
[353235158,1739695835667,-500.0,8.782e-05,2]
[353235159,1739695835677,-500.0,8.782e-05,2]
[353235160,1739695835687,-500.0,8.782e-05,2]
[353235161,1739695835699,-500.0,8.782e-05,2]
[353235162,1739695835709,-506.07149873,8.782e-05,2]
[353235163,1739695835719,-472.20702433,8.782e-05,2]
[353235164,1739695835729,-500.0,8.782e-05,2]
[353235165,1739695835739,-500.0,8.782e-05,2]
[353235166,1739695835749,-502.77730454,8.782e-05,2]
[353235167,1739695835758,-329.28606819,8.782e-05,2]
[353235168,1739695835768,-500.0,8.782e-05,2]
[353235169,1739695835777,-500.0,8.782e-05,2]
[353235170,1739695835787,-500.0,8.782e-05,2]
[353235171,1739695835796,-500.0,8.782e-05,2]
[353235172,1739695835805,-500.0,8.782e-05,2]
[353235173,1739695835815,-500.0,8.782e-05,2]
[353235174,1739695835824,-500.0,8.782e-05,2]
[353235175,1739695835834,-500.0,8.782e-05,2]
[353235176,1739695835843,-500.0,8.782e-05,2]
[353235177,1739695835852,-629.6,8.782e-05,2]
[353235178,1739695835861,-503.42308978,8.782e-05,2]
[353235179,1739695835871,-500.0,8.782e-05,2]
[353235180,1739695835880,-500.0,8.782e-05,2]
[353235181,1739695835890,-500.0,8.782e-05,2]
[353235182,1739695835899,-500.0,8.782e-05,2]
[353235183,1739695835909,-500.0,8.782e-05,2]
[353235184,1739695835919,-500.0,8.782e-05,2]
[353235185,1739695835928,-500.0,8.782e-05,2]
[353235186,1739695835938,-500.0,8.782e-05,2]
[353235187,1739695835947,-500.0,8.782e-05,2]
[353235188,1739695835957,-500.0,8.782e-05,2]
[353235189,1739695835967,-906.93,8.782e-05,2]
[353235190,1739695835977,-500.0,8.782e-05,2]
[353235191,1739695835987,-500.0,8.782e-05,2]
[353235192,1739695835996,-500.0,8.782e-05,2]
[353235193,1739695836006,-745.74,8.782e-05,2]
[353235194,1739695836015,-500.0,8.782e-05,2]
[353235195,1739695836025,-500.0,8.782e-05,2]
[353235196,1739695836034,-513.50015494,8.782e-05,2]
[353235197,1739695836044,-500.0,8.782e-05,2]
[353235198,1739695836054,-580.03097848,8.782e-05,2]
[353235199,1739695836064,-923.29,8.782e-05,2]
[353235200,1739695836074,-500.0,8.782e-05,2]